[Event "Kragero Resort Chess A 2019"]
[Site "Kragero"]
[Date "2019.02.21"]
[Round "2.25"]
[White "Rishovd, Svein"]
[Black "Gudmundsson, Bjorgvin S"]
[Result "0-1"]
[ECO "A12"]
[WhiteElo "2116"]
[BlackElo "1941"]
[Annotator "NA"]
[PlyCount "132"]
[EventDate "2019.02.20"]
[EventType "swiss"]
[EventCountry "NOR"]
[SourceTitle "playchess.com"]
[Source "ChessBase"]
[SourceQuality "1"]
[TimeControl "5400+30"]

1. Nf3 {[%emt 0:00:00]} d5 {[%emt 0:02:50]} 2. e3 {[%emt 0:00:03]} Nf6 {[%emt 0:00:45]} 3. c4 {[%emt 0:00:39]} c6 {[%emt 0:00:25]} 4. b3 {[%emt 0:00:36]} Bf5 {[%emt 0:01:09]} 5. Bb2 {[%emt 0:00:40]} e6 {[%emt 0:00:14]} 6. Be2 {[%emt 0:01:02]} Be7 {[%emt 0:01:37]} 7. O-O {[%emt 0:00:09]} O-O {[%emt 0:00:02]} 8. Nh4 {[%emt 0:01:56]} Bg6 {[%emt 0:02:33]} 9. Nxg6 {[%emt 0:01:59]} hxg6 {[%emt 0:00:05]} 10. d4 {[%emt 0:00:56]} Nbd7 {[%emt 0:00:34]} 11. Nc3 {[%emt 0:00:30]} a6 {[%emt 0:18:35]} 12. f3 {[%emt 0:03:50]} c5 {[%emt 0:09:18]} 13. cxd5 {[%emt 0:08:26]} exd5 {[%emt 0:04:24]} 14. Qd2 {[%emt 0:05:46]} cxd4 {[%emt 0:08:36]} 15. exd4 {[%emt 0:00:06]} Bd6 {[%emt 0:01:08]} 16. Bd3 {[%emt 0:09:08]} Re8 {[%emt 0:02:41]} 17. Rfe1 {[%emt 0:02:17]} Qc7 {[%emt 0:01:10]} 18. Rxe8+ {[%emt 0:02:27]} Rxe8 {[%emt 0:00:02]} 19. g3 {[%emt 0:00:43]} Nf8 {[%emt 0:07:15]} 20. Ne2 {[%emt 0:06:40]} Qe7 {[%emt 0:03:12]} 21. Kf2 {[%emt 0:01:02]} Bb4 {[%emt 0:00:34]} 22. Bc3 {[%emt 0:01:15]} Bd6 {[%emt 0:00:24]} 23. Re1 {[%emt 0:01:02]} Nh5 {[%emt 0:03:46]} 24. Nc1 {[%emt 0:03:31]} Ne6 {[%emt 0:08:16]} 25. Bf1 {[%emt 0:01:16]} Rc8 {[%emt 0:00:19]} 26. Ne2 {[%emt 0:11:30]} Qf6 {[%emt 0:03:30]} 27. Qd3 {[%emt 0:05:57]} Qf5 {[%emt 0:07:29]} 28. Rd1 {[%emt 0:12:01]} Nf6 {[%emt 0:02:16]} 29. Qxf5 {[%emt 0:04:23]} gxf5 {[%emt 0:00:04]} 30. Bh3 {[%emt 0:02:07]} g6 {[%emt 0:00:14]} 31. Ke3 {[%emt 0:01:09]} Kg7 {[%emt 0:00:35]} 32. Kd3 {[%emt 0:00:00]} Rh8 {[%emt 0:00:32]} 33. Bg2 {[%emt 0:02:58]} Rxh2 {[%emt 0:00:07]} 34. Rg1 {[%emt 0:00:17]} Nh5 {[%emt 0:03:37]} 35. Be1 {[%emt 0:00:26]} Kf8 {[%emt 0:02:11]} 36. f4 {[%emt 0:06:22]} Nf6 {[%emt 0:01:55]} 37. Nc3 {[%emt 0:00:35]} Nc7 {[%emt 0:00:30]} 38. Bf3 {[%emt 0:00:29]} Ne4 {[%emt 0:00:29]} 39. Rg2 {[%emt 0:02:47]} Rh3 {[%emt 0:01:36]} 40. Ke2 {[%emt 0:01:07]} Rh1 {[%emt 0:01:17]} 41. Bd2 {[%emt 0:00:57]} Rh3 {[%emt 0:01:49]} 42. Be1 {[%emt 0:00:09]} Ke8 {[%emt 0:00:19]} 43. Rg1 {[%emt 0:00:20]} Rh2+ {[%emt 0:00:49]} 44. Rg2 {[%emt 0:00:06]} Rh1 {[%emt 0:00:07]} 45. Bd2 {[%emt 0:00:07]} a5 {[%emt 0:01:00]} 46. Nd1 {[%emt 0:00:18]} Bb4 {[%emt 0:00:21]} 47. Bxe4 {[%emt 0:02:37]} fxe4 {[%emt 0:00:39]} 48. Bxb4 {[%emt 0:00:17]} axb4 {[%emt 0:00:08]} 49. Kd2 {[%emt 0:00:57]} Ke7 {[%emt 0:00:58]} 50. Ne3 {[%emt 0:00:18]} Kd6 {[%emt 0:00:05]} 51. Nc2 {[%emt 0:00:09]} Nb5 {[%emt 0:01:36]} 52. Ke3 {[%emt 0:00:07]} Rc1 {[%emt 0:01:02]} 53. g4 {[%emt 0:01:26]} Rd1 {[%emt 0:00:39]} 54. Rd2 {[%emt 0:00:06]} Rg1 {[%emt 0:00:24]} 55. Nxb4 {[%emt 0:00:34]} Rxg4 {[%emt 0:00:10]} 56. Rc2 {[%emt 0:00:14]} Rg3+ {[%emt 0:00:31]} 57. Kf2 {[%emt 0:00:13]} Rf3+ {[%emt 0:00:14]} 58. Kg2 {[%emt 0:00:01]} Nxd4 {[%emt 0:00:19]} 59. Rd2 {[%emt 0:00:01]} Kc5 {[%emt 0:00:21]} 60. Nc2 {[%emt 0:00:58]} Nxc2 {[%emt 0:00:24]} 61. Rxc2+ {[%emt 0:00:01]} Kd6 {[%emt 0:00:38]} 62. Rc8 {[%emt 0:00:31]} Rxf4 {[%emt 0:00:11]} 63. Rd8+ {[%emt 0:00:08]} Kc6 {[%emt 0:00:07]} 64. Rc8+ {[%emt 0:00:08]} Kd7 {[%emt 0:00:08]} 65. Rb8 {[%emt 0:00:05]} Kc7 {[%emt 0:00:17]} 66. Re8 {[%emt 0:00:08]} d4 {[%emt 0:02:03]} 0-1

[Event "Kragero Resort Chess A 2019"]
[Site "Kragero"]
[Date "2019.02.21"]
[Round "2.26"]
[White "Fivelstad, Jon Olav"]
[Black "Abdrlauf, Elham"]
[Result "0-1"]
[ECO "B11"]
[WhiteElo "1900"]
[BlackElo "2105"]
[Annotator "NA"]
[PlyCount "56"]
[EventDate "2019.02.20"]
[EventType "swiss"]
[EventCountry "NOR"]
[SourceTitle "playchess.com"]
[Source "ChessBase"]
[SourceQuality "1"]
[TimeControl "5400+30"]

1. e4 {[%emt 0:00:00]} c6 {[%emt 0:00:00]} 2. Nf3 {[%emt 0:04:30]} d5 {[%emt 0:00:29]} 3. Nc3 {[%emt 0:00:07]} dxe4 {[%emt 0:00:32]} 4. Nxe4 {[%emt 0:00:23]} Nf6 {[%emt 0:00:10]} 5. Ng3 {[%emt 0:02:26]} h5 {[%emt 0:00:36]} 6. h4 {[%emt 0:00:38]} Bg4 {[%emt 0:00:51]} 7. Be2 {[%emt 0:06:16]} Nbd7 {[%emt 0:01:58]} 8. Ng5 {[%emt 0:07:34]} Bxe2 {[%emt 0:00:12]} 9. Qxe2 {[%emt 0:00:21]} e6 {[%emt 0:00:27]} 10. b3 {[%emt 0:03:35]} g6 {[%emt 0:07:14]} 11. Bb2 {[%emt 0:03:20]} Bg7 {[%emt 0:00:36]} 12. O-O-O {[%emt 0:05:16]} O-O {[%emt 0:03:54]} 13. Kb1 {[%emt 0:08:29]} a5 {[%emt 0:01:03]} 14. a3 {[%emt 0:00:57]} b5 {[%emt 0:08:10]} 15. f3 {[%emt 0:19:06]} a4 {[%emt 0:02:56]} 16. Rc1 {[%emt 0:08:10]} axb3 {[%emt 0:03:34]} 17. cxb3 {[%emt 0:00:12]} Qc7 {[%emt 0:00:37]} 18. Nxe6 {[%emt 0:05:34]} Qxg3 {[%emt 0:10:06]} 19. Nxg7 {[%emt 0:07:34]} Qd6 {[%emt 0:03:33]} 20. Nf5 gxf5 {[%emt 0:00:25]} 21. Qe3 {[%emt 0:04:40]} f4 {[%emt 0:01:03]} 22. Qc3 {[%emt 0:00:44]} c5 {[%emt 0:01:31]} 23. Qc2 {[%emt 0:00:54]} c4 {[%emt 0:02:37]} 24. bxc4 {[%emt 0:08:34]} bxc4 {[%emt 0:00:03]} 25. Qxc4 {[%emt 0:00:14]} Rfb8 {[%emt 0:00:31]} 26. Ka2 {[%emt 0:01:02]} Ne5 {[%emt 0:01:31]} 27. Qc5 {[%emt 0:01:28]} Rxb2+ {[%emt 0:00:14]} 28. Kxb2 {[%emt 0:00:13]} Nd3+ {[%emt 0:00:29]} 0-1

[Event "Kragero Resort Chess A 2019"]
[Site "Kragero"]
[Date "2019.02.21"]
[Round "2.27"]
[White "Lund, Terje"]
[Black "Boe, Oeyvind"]
[Result "1/2-1/2"]
[ECO "E12"]
[WhiteElo "2099"]
[BlackElo "1908"]
[Annotator "NA"]
[PlyCount "89"]
[EventDate "2019.02.20"]
[EventType "swiss"]
[EventCountry "NOR"]
[SourceTitle "playchess.com"]
[Source "ChessBase"]
[SourceQuality "1"]
[TimeControl "5400+30"]

1. d4 {[%emt 0:00:00]} Nf6 {[%emt 0:00:00]} 2. c4 {[%emt 0:00:00]} e6 {[%emt 0:00:01]} 3. Nf3 {[%emt 0:00:23]} b6 {[%emt 0:00:20]} 4. a3 {[%emt 0:00:57]} Bb7 {[%emt 0:00:08]} 5. Nc3 {[%emt 0:00:05]} d5 {[%emt 0:00:14]} 6. cxd5 {[%emt 0:00:31]} Nxd5 {[%emt 0:00:12]} 7. Qc2 {[%emt 0:00:05]} c5 {[%emt 0:00:37]} 8. e4 {[%emt 0:05:30]} Nxc3 {[%emt 0:04:24]} 9. bxc3 {[%emt 0:00:07]} Nd7 {[%emt 0:00:18]} 10. Bd3 {[%emt 0:04:12]} g6 {[%emt 0:00:20]} 11. O-O {[%emt 0:03:55]} Bg7 {[%emt 0:00:04]} 12. Bg5 {[%emt 0:07:47]} Qc7 {[%emt 0:03:39]} 13. Qd2 {[%emt 0:07:45]} O-O {[%emt 0:25:59]} 14. Bh6 {[%emt 0:07:39]} Rfd8 {[%emt 0:00:18]} 15. Bxg7 {[%emt 0:00:22]} Kxg7 {[%emt 0:00:03]} 16. Qe3 {[%emt 0:05:42]} Rac8 {[%emt 0:06:33]} 17. Rfd1 {[%emt 0:14:35]} Nf6 {[%emt 0:18:14]} 18. Rac1 {[%emt 0:04:12]} Qc6 {[%emt 0:01:28]} 19. Ne5 {[%emt 0:08:12]} Qa4 {[%emt 0:11:27]} 20. Qf4 {[%emt 0:05:47]} cxd4 {[%emt 0:02:12]} 21. g4 {[%emt 0:09:23]} Rf8 {[%emt 0:11:19]} 22. cxd4 {[%emt 0:02:38]} Qxd4 {[%emt 0:03:37]} 23. Rxc8 {[%emt 0:02:28]} Bxc8 {[%emt 0:00:13]} 24. Rc1 {[%emt 0:01:06]} Nd5 {[%emt 0:00:57]} 25. Qg3 {[%emt 0:01:41]} Nc3 {[%emt 0:02:15]} 26. Nc6 {[%emt 0:03:23]} Qc5 {[%emt 0:02:05]} 27. Qe5+ {[%emt 0:00:38]} Qxe5 {[%emt 0:00:06]} 28. Nxe5 {[%emt 0:00:02]} Na4 {[%emt 0:00:25]} 29. Rc7 {[%emt 0:01:24]} Nc5 {[%emt 0:00:23]} 30. Bc2 {[%emt 0:01:33]} Kf6 {[%emt 0:00:38]} 31. Nf3 {[%emt 0:02:10]} Bb7 {[%emt 0:03:56]} 32. g5+ {[%emt 0:00:47]} Kg7 {[%emt 0:00:02]} 33. Ne5 {[%emt 0:00:19]} Bxe4 {[%emt 0:00:50]} 34. Rxc5 {[%emt 0:01:03]} bxc5 {[%emt 0:00:07]} 35. Bxe4 {[%emt 0:00:04]} f5 {[%emt 0:01:08]} 36. gxf6+ {[%emt 0:00:36]} Rxf6 {[%emt 0:00:02]} 37. Nd7 {[%emt 0:00:17]} Rf7 {[%emt 0:01:04]} 38. Nxc5 {[%emt 0:00:08]} Kf6 {[%emt 0:00:04]} 39. Nd3 {[%emt 0:00:55]} e5 {[%emt 0:00:42]} 40. f3 {[%emt 0:00:37]} Rc7 {[%emt 0:00:23]} 41. Nb4 {[%emt 0:00:44]} Rc1+ {[%emt 0:00:46]} 42. Kg2 {[%emt 0:00:14]} Ra1 {[%emt 0:00:29]} 43. Nc2 {[%emt 0:00:13]} Ra2 {[%emt 0:00:15]} 44. Kf2 {[%emt 0:00:24]} Rb2 {[%emt 0:00:11]} 45. Kg3 {[%emt 0:00:59]} 1/2-1/2

[Event "Kragero Resort Chess A 2019"]
[Site "Kragero"]
[Date "2019.02.21"]
[Round "2.28"]
[White "Kreken, Eivind Grunt"]
[Black "Saltvedt, Martin"]
[Result "0-1"]
[ECO "B36"]
[WhiteElo "1887"]
[BlackElo "2095"]
[Annotator "NA"]
[PlyCount "110"]
[EventDate "2019.02.20"]
[EventType "swiss"]
[EventCountry "NOR"]
[SourceTitle "playchess.com"]
[Source "ChessBase"]
[SourceQuality "1"]
[TimeControl "5400+30"]

1. e4 {[%emt 0:00:00]} c5 {[%emt 0:00:00]} 2. Nf3 {[%emt 0:00:00]} Nc6 {[%emt 0:00:11]} 3. d4 {[%emt 0:00:36]} cxd4 {[%emt 0:00:13]} 4. Nxd4 {[%emt 0:00:09]} g6 {[%emt 0:01:18]} 5. c4 {[%emt 0:00:20]} Nf6 {[%emt 0:01:11]} 6. Nc3 {[%emt 0:00:43]} Nxd4 {[%emt 0:01:11]} 7. Qxd4 {[%emt 0:00:19]} Bg7 {[%emt 0:02:37]} 8. Be2 {[%emt 0:01:09]} O-O {[%emt 0:01:39]} 9. Qd1 {[%emt 0:02:24]} d6 {[%emt 0:02:14]} 10. Be3 {[%emt 0:01:56]} a5 {[%emt 0:01:44]} 11. O-O {[%emt 0:00:25]} Be6 {[%emt 0:01:27]} 12. f3 {[%emt 0:02:25]} Nd7 {[%emt 0:07:51]} 13. Nd5 {[%emt 0:03:16]} Nc5 {[%emt 0:02:19]} 14. Bd4 {[%emt 0:10:58]} Bxd5 {[%emt 0:12:24]} 15. Bxg7 {[%emt 0:01:23]} Kxg7 {[%emt 0:00:13]} 16. cxd5 {[%emt 0:00:12]} e5 {[%emt 0:05:42]} 17. dxe6 {[%emt 0:08:02]} fxe6 {[%emt 0:00:40]} 18. Qd2 {[%emt 0:00:53]} Qb6 {[%emt 0:05:09]} 19. Kh1 {[%emt 0:00:33]} Rad8 {[%emt 0:00:28]} 20. b4 {[%emt 0:08:37]} Qxb4 {[%emt 0:09:55]} 21. Qxb4 {[%emt 0:01:03]} axb4 {[%emt 0:01:08]} 22. Rab1 {[%emt 0:00:27]} Ra8 {[%emt 0:09:08]} 23. Bc4 {[%emt 0:01:13]} Ra4 {[%emt 0:01:13]} 24. Rfd1 {[%emt 0:01:30]} Rd8 {[%emt 0:00:40]} 25. Bb3 {[%emt 0:02:08]} Nxb3 {[%emt 0:03:54]} 26. axb3 {[%emt 0:05:02]} Ra6 {[%emt 0:02:14]} 27. Rd4 {[%emt 0:00:40]} Rb6 {[%emt 0:00:24]} 28. Kg1 {[%emt 0:01:07]} Rc8 {[%emt 0:06:50]} 29. Rbd1 {[%emt 0:01:00]} Rcc6 {[%emt 0:00:09]} 30. Kf2 {[%emt 0:00:42]} Kf6 {[%emt 0:00:13]} 31. Ke3 {[%emt 0:00:34]} Rc3+ {[%emt 0:03:14]} 32. R1d3 {[%emt 0:00:34]} Rxd3+ {[%emt 0:02:01]} 33. Kxd3 {[%emt 0:00:45]} Ke5 {[%emt 0:00:33]} 34. Ke3 {[%emt 0:00:54]} g5 {[%emt 0:01:12]} 35. g3 {[%emt 0:00:19]} Kf6 {[%emt 0:05:40]} 36. Kd3 {[%emt 0:01:39]} h5 {[%emt 0:00:29]} 37. Ke3 {[%emt 0:00:14]} Ke7 {[%emt 0:02:05]} 38. f4 {[%emt 0:00:39]} gxf4+ {[%emt 0:03:30]} 39. gxf4 {[%emt 0:00:28]} Rb5 {[%emt 0:01:50]} 40. Kf3 {[%emt 0:01:01]} e5 {[%emt 0:02:43]} 41. fxe5 {[%emt 0:01:05]} dxe5 {[%emt 0:00:05]} 42. Rc4 {[%emt 0:00:52]} Kd6 {[%emt 0:01:01]} 43. Kg3 {[%emt 0:00:21]} Rc5 {[%emt 0:00:48]} 44. Rxb4 {[%emt 0:00:13]} b5 {[%emt 0:00:21]} 45. Kh4 {[%emt 0:01:16]} Kc6 {[%emt 0:00:13]} 46. Kxh5 {[%emt 0:00:24]} Rc2 {[%emt 0:00:18]} 47. h4 {[%emt 0:00:49]} Kc5 {[%emt 0:00:10]} 48. Rxb5+ {[%emt 0:00:12]} Kxb5 {[%emt 0:00:04]} 49. Kg6 {[%emt 0:00:19]} Kc5 {[%emt 0:01:46]} 50. h5 {[%emt 0:00:19]} Kd4 {[%emt 0:00:53]} 51. h6 {[%emt 0:00:11]} Kxe4 {[%emt 0:00:24]} 52. h7 {[%emt 0:00:09]} Rh2 {[%emt 0:00:17]} 53. Kg7 {[%emt 0:00:25]} Kd5 {[%emt 0:00:45]} 54. h8=Q {[%emt 0:00:08]} Rxh8 {[%emt 0:00:07]} 55. Kxh8 {[%emt 0:00:09]} e4 {[%emt 0:00:03]} 0-1

[Event "Kragero Resort Chess A 2019"]
[Site "Kragero"]
[Date "2019.02.21"]
[Round "2.29"]
[White "Kizatbay, Abyl"]
[Black "Albzour, Abdalsalam"]
[Result "1-0"]
[ECO "B13"]
[WhiteElo "2084"]
[BlackElo "1869"]
[Annotator "NA"]
[PlyCount "127"]
[EventDate "2019.02.20"]
[EventType "swiss"]
[EventCountry "NOR"]
[SourceTitle "playchess.com"]
[Source "ChessBase"]
[SourceQuality "1"]
[TimeControl "5400+30"]

1. e4 {[%emt 0:00:00]} c6 {[%emt 0:00:00]} 2. d4 {[%emt 0:00:31]} d5 {[%emt 0:00:03]} 3. exd5 {[%emt 0:00:05]} cxd5 {[%emt 0:00:42]} 4. Bd3 {[%emt 0:00:22]} Nc6 {[%emt 0:00:37]} 5. c3 {[%emt 0:00:06]} Nf6 {[%emt 0:00:30]} 6. Bf4 {[%emt 0:00:09]} e6 {[%emt 0:00:46]} 7. Nf3 {[%emt 0:01:01]} Bd6 {[%emt 0:00:40]} 8. Bxd6 {[%emt 0:04:44]} Qxd6 {[%emt 0:00:11]} 9. O-O {[%emt 0:00:13]} O-O {[%emt 0:00:13]} 10. Nbd2 {[%emt 0:01:41]} Bd7 {[%emt 0:00:10]} 11. Re1 {[%emt 0:00:35]} Rfe8 {[%emt 0:00:07]} 12. Ne5 {[%emt 0:03:14]} Rad8 {[%emt 0:01:33]} 13. g4 {[%emt 0:08:02]} h6 {[%emt 0:01:29]} 14. h4 {[%emt 0:05:28]} Qe7 {[%emt 0:06:22]} 15. Qf3 {[%emt 0:24:00]} Rf8 {[%emt 0:06:20]} 16. Qh3 {[%emt 0:07:05]} Nh7 {[%emt 0:14:06]} 17. Ndf3 {[%emt 0:03:56]} Qf6 {[%emt 0:02:31]} 18. Re3 {[%emt 0:01:24]} g6 {[%emt 0:10:33]} 19. Kg2 {[%emt 0:03:52]} Ne7 {[%emt 0:02:57]} 20. Rh1 {[%emt 0:04:56]} Qg7 {[%emt 0:00:15]} 21. Kf1 {[%emt 0:05:19]} Bc8 {[%emt 0:00:17]} 22. g5 {[%emt 0:01:38]} h5 {[%emt 0:00:42]} 23. Rg1 {[%emt 0:01:28]} Nf5 {[%emt 0:02:46]} 24. Re2 {[%emt 0:02:40]} a6 {[%emt 0:03:29]} 25. Ne1 {[%emt 0:01:57]} Rfe8 {[%emt 0:00:57]} 26. Ng2 {[%emt 0:00:52]} Nf8 {[%emt 0:00:06]} 27. Nf4 {[%emt 0:01:51]} Nd7 {[%emt 0:02:31]} 28. Bxf5 {[%emt 0:03:56]} exf5 {[%emt 0:01:02]} 29. Nxd5 {[%emt 0:03:10]} Re6 {[%emt 0:05:10]} 30. Nxd7 {[%emt 0:03:40]} Bxd7 {[%emt 0:02:25]} 31. Nf6+ {[%emt 0:02:45]} Rxf6 {[%emt 0:02:37]} 32. gxf6 {[%emt 0:00:08]} Qxf6 {[%emt 0:00:37]} 33. Re5 {[%emt 0:02:05]} f4 {[%emt 0:01:15]} 34. Qf3 {[%emt 0:00:40]} Kh7 {[%emt 0:05:01]} 35. Qxb7 {[%emt 0:00:28]} Qxh4 {[%emt 0:02:03]} 36. Ke1 {[%emt 0:01:32]} Qf6 {[%emt 0:01:41]} 37. Rf1 {[%emt 0:02:26]} Bb5 {[%emt 0:02:55]} 38. Rg1 {[%emt 0:00:17]} f3 {[%emt 0:01:01]} 39. Qe7 {[%emt 0:00:20]} Qf4 {[%emt 0:01:28]} 40. Kd1 {[%emt 0:00:36]} Rd7 {[%emt 0:07:15]} 41. Qg5 {[%emt 0:00:12]} Qh2 {[%emt 0:00:29]} 42. Qg3 {[%emt 0:00:21]} Be2+ {[%emt 0:03:17]} 43. Kd2 {[%emt 0:00:10]} Qxg3 {[%emt 0:00:42]} 44. Rxg3 {[%emt 0:00:00]} Rd6 {[%emt 0:02:40]} 45. Ke3 {[%emt 0:00:38]} Rf6 {[%emt 0:00:45]} 46. c4 {[%emt 0:00:38]} Bxc4 {[%emt 0:00:58]} 47. Rxf3 {[%emt 0:00:01]} Rd6 {[%emt 0:02:38]} 48. a4 {[%emt 0:00:39]} f6 {[%emt 0:01:57]} 49. Rc5 {[%emt 0:00:37]} Bd5 {[%emt 0:01:27]} 50. Rh3 {[%emt 0:00:06]} Re6+ {[%emt 0:00:52]} 51. Kd2 {[%emt 0:00:16]} Rd6 {[%emt 0:00:16]} 52. Kc3 {[%emt 0:00:33]} Be6 {[%emt 0:00:11]} 53. Rh2 {[%emt 0:00:28]} Kh6 {[%emt 0:00:16]} 54. b4 {[%emt 0:01:22]} Bd7 {[%emt 0:00:55]} 55. b5 {[%emt 0:00:20]} axb5 {[%emt 0:00:46]} 56. axb5 {[%emt 0:00:01]} g5 {[%emt 0:02:03]} 57. Kc4 {[%emt 0:00:10]} h4 {[%emt 0:00:35]} 58. d5 {[%emt 0:00:13]} Be8 {[%emt 0:00:52]} 59. Rc6 {[%emt 0:00:17]} Bxc6 {[%emt 0:01:09]} 60. bxc6 {[%emt 0:00:04]} Kg7 {[%emt 0:00:40]} 61. c7 {[%emt 0:00:07]} Ra6 {[%emt 0:00:43]} 62. c8=Q {[%emt 0:00:08]} Ra2 {[%emt 0:00:23]} 63. Qb7+ {[%emt 0:00:22]} Kg6 {[%emt 0:00:11]} 64. Qb1+ {[%emt 0:00:13]} 1-0

[Event "Kragero Resort Chess A 2019"]
[Site "Kragero"]
[Date "2019.02.21"]
[Round "2.30"]
[White "Nilsen, Jarle"]
[Black "Birkisson, Bjorn Holm"]
[Result "0-1"]
[ECO "D35"]
[WhiteElo "1845"]
[BlackElo "2078"]
[Annotator "NA"]
[PlyCount "76"]
[EventDate "2019.02.20"]
[EventType "swiss"]
[EventCountry "NOR"]
[SourceTitle "playchess.com"]
[Source "ChessBase"]
[SourceQuality "1"]
[TimeControl "5400+30"]

1. d4 {[%emt 0:00:25]} d5 {[%emt 0:00:21]} 2. c4 {[%emt 0:00:06]} e6 {[%emt 0:00:04]} 3. Nc3 {[%emt 0:00:04]} Be7 {[%emt 0:00:05]} 4. Nf3 {[%emt 0:00:39]} Nf6 {[%emt 0:00:10]} 5. cxd5 {[%emt 0:00:06]} exd5 {[%emt 0:00:07]} 6. Bg5 {[%emt 0:00:14]} c6 {[%emt 0:00:54]} 7. e3 {[%emt 0:00:20]} Bf5 {[%emt 0:04:14]} 8. Be2 {[%emt 0:02:40]} O-O {[%emt 0:03:39]} 9. O-O {[%emt 0:01:40]} Ne4 {[%emt 0:07:49]} 10. Bf4 {[%emt 0:02:05]} Nd7 {[%emt 0:10:08]} 11. a3 {[%emt 0:14:40]} a5 {[%emt 0:03:57]} 12. Re1 {[%emt 0:12:57]} Re8 {[%emt 0:07:45]} 13. Bf1 {[%emt 0:02:22]} g5 {[%emt 0:09:40]} 14. Bg3 {[%emt 0:06:25]} h5 {[%emt 0:00:06]} 15. h3 {[%emt 0:24:09]} Nxg3 {[%emt 0:03:26]} 16. fxg3 {[%emt 0:00:31]} g4 {[%emt 0:01:08]} 17. Ne5 {[%emt 0:04:42]} Nxe5 {[%emt 0:01:35]} 18. dxe5 {[%emt 0:00:33]} Bc5 {[%emt 0:02:17]} 19. Bd3 {[%emt 0:03:22]} Qg5 {[%emt 0:01:23]} 20. Bxf5 {[%emt 0:02:33]} Qxf5 {[%emt 0:00:13]} 21. Rf1 {[%emt 0:05:45]} Qxe5 {[%emt 0:02:02]} 22. Kh2 {[%emt 0:02:29]} Bd6 {[%emt 0:01:05]} 23. Ne2 {[%emt 0:05:28]} h4 {[%emt 0:03:02]} 24. Nf4 {[%emt 0:00:09]} hxg3+ {[%emt 0:02:48]} 25. Kh1 {[%emt 0:00:20]} Qg5 {[%emt 0:01:19]} 26. Qxg4 {[%emt 0:03:40]} Qxg4 {[%emt 0:00:12]} 27. hxg4 {[%emt 0:00:04]} Rxe3 {[%emt 0:00:39]} 28. Nh5 {[%emt 0:00:32]} Be5 {[%emt 0:03:50]} 29. Rab1 {[%emt 0:01:14]} d4 {[%emt 0:00:42]} 30. Rf3 {[%emt 0:01:41]} Rd8 {[%emt 0:01:49]} 31. Rbf1 {[%emt 0:00:38]} Rxf3 {[%emt 0:00:27]} 32. gxf3 {[%emt 0:00:09]} d3 {[%emt 0:00:06]} 33. b3 {[%emt 0:01:00]} d2 {[%emt 0:01:12]} 34. Rd1 {[%emt 0:00:03]} a4 {[%emt 0:00:20]} 35. bxa4 {[%emt 0:00:22]} c5 {[%emt 0:00:12]} 36. f4 {[%emt 0:00:40]} c4 {[%emt 0:01:07]} 37. fxe5 {[%emt 0:01:53]} c3 {[%emt 0:00:06]} 38. Nf6+ {[%emt 0:00:06]} Kf8 {[%emt 0:00:12]} 0-1

[Event "Kragero Resort Chess A 2019"]
[Site "Kragero"]
[Date "2019.02.21"]
[Round "2.31"]
[White "Jonsson, Gauti Pall"]
[Black "Mkrtchyan, Anahit D."]
[Result "1/2-1/2"]
[ECO "A11"]
[WhiteElo "2070"]
[BlackElo "1841"]
[Annotator "NA"]
[PlyCount "128"]
[EventDate "2019.02.20"]
[EventType "swiss"]
[EventCountry "NOR"]
[SourceTitle "playchess.com"]
[Source "ChessBase"]
[SourceQuality "1"]
[TimeControl "5400+30"]

1. Nf3 {[%emt 0:00:06]} Nf6 {[%emt 0:00:00]} 2. e3 {[%emt 0:01:05]} d5 {[%emt 0:00:00]} 3. c4 {[%emt 0:01:02]} c6 {[%emt 0:00:52]} 4. Nc3 {[%emt 0:01:05]} e6 {[%emt 0:03:18]} 5. Qc2 {[%emt 0:02:52]} Bd6 {[%emt 0:00:11]} 6. b3 {[%emt 0:01:29]} O-O {[%emt 0:04:26]} 7. Bb2 {[%emt 0:00:34]} Nbd7 {[%emt 0:02:20]} 8. Rg1 {[%emt 0:03:17]} Qc7 {[%emt 0:06:16]} 9. g4 {[%emt 0:03:55]} Ne5 {[%emt 0:16:50]} 10. Nxe5 {[%emt 0:04:49]} Bxe5 {[%emt 0:00:05]} 11. f4 {[%emt 0:04:31]} Bd6 {[%emt 0:02:54]} 12. g5 {[%emt 0:08:41]} Nd7 {[%emt 0:00:35]} 13. Bd3 {[%emt 0:05:57]} g6 {[%emt 0:00:44]} 14. Nd1 {[%emt 0:03:57]} e5 {[%emt 0:03:49]} 15. Nf2 {[%emt 0:03:17]} Nc5 {[%emt 0:03:23]} 16. b4 {[%emt 0:03:45]} Nxd3+ {[%emt 0:01:46]} 17. Nxd3 {[%emt 0:00:26]} Bf5 {[%emt 0:12:55]} 18. c5 {[%emt 0:01:09]} Be7 {[%emt 0:07:54]} 19. Bxe5 {[%emt 0:02:01]} Qd7 {[%emt 0:00:06]} 20. Qc3 {[%emt 0:01:38]} Qe6 {[%emt 0:00:37]} 21. h4 {[%emt 0:09:14]} b6 {[%emt 0:07:31]} 22. Bd4 {[%emt 0:08:28]} Rab8 {[%emt 0:03:25]} 23. Kf2 {[%emt 0:02:44]} Be4 {[%emt 0:02:06]} 24. Rg3 {[%emt 0:00:58]} f6 {[%emt 0:05:43]} 25. gxf6 {[%emt 0:01:05]} Bxf6 {[%emt 0:00:05]} 26. Bxf6 {[%emt 0:00:54]} Rxf6 {[%emt 0:00:05]} 27. Qe5 {[%emt 0:04:46]} Rb7 {[%emt 0:05:26]} 28. Qxe6+ {[%emt 0:01:40]} Rxe6 {[%emt 0:00:03]} 29. Ne5 {[%emt 0:00:55]} bxc5 {[%emt 0:01:08]} 30. d3 {[%emt 0:01:26]} Bf5 {[%emt 0:00:27]} 31. bxc5 {[%emt 0:00:36]} Rb5 {[%emt 0:02:07]} 32. Kf3 {[%emt 0:01:12]} Rxc5 {[%emt 0:01:31]} 33. Rb1 {[%emt 0:00:43]} Re7 {[%emt 0:01:50]} 34. h5 {[%emt 0:01:00]} Kg7 {[%emt 0:01:12]} 35. Rb3 {[%emt 0:02:43]} Kf6 {[%emt 0:02:55]} 36. e4 {[%emt 0:01:04]} dxe4+ {[%emt 0:00:06]} 37. dxe4 {[%emt 0:00:16]} Be6 {[%emt 0:00:25]} 38. Rd3 {[%emt 0:00:49]} Rg7 {[%emt 0:02:31]} 39. hxg6 {[%emt 0:01:09]} hxg6 {[%emt 0:00:09]} 40. Rg5 {[%emt 0:00:17]} Rc1 {[%emt 0:00:54]} 41. Rd6 {[%emt 0:01:34]} Rc3+ {[%emt 0:00:39]} 42. Kf2 {[%emt 0:00:46]} Ra3 {[%emt 0:00:07]} 43. Rxc6 {[%emt 0:01:39]} Rxa2+ {[%emt 0:00:08]} 44. Ke3 {[%emt 0:00:29]} Ra3+ {[%emt 0:00:06]} 45. Kd4 {[%emt 0:00:41]} Ra4+ {[%emt 0:00:15]} 46. Nc4 {[%emt 0:00:38]} Rd7+ {[%emt 0:00:50]} 47. Kc3 {[%emt 0:01:22]} Rxc4+ {[%emt 0:01:40]} 48. Rxc4 {[%emt 0:00:11]} Bxc4 {[%emt 0:00:01]} 49. Kxc4 {[%emt 0:00:14]} Rc7+ {[%emt 0:00:38]} 50. Kb5 {[%emt 0:01:34]} Re7 {[%emt 0:00:26]} 51. e5+ {[%emt 0:00:14]} Kf7 {[%emt 0:00:06]} 52. Kc6 {[%emt 0:02:17]} a5 {[%emt 0:00:59]} 53. Rg3 {[%emt 0:00:41]} a4 {[%emt 0:00:38]} 54. Ra3 {[%emt 0:00:09]} Ra7 {[%emt 0:00:18]} 55. Kb6 {[%emt 0:01:59]} Ra8 {[%emt 0:00:03]} 56. Kb7 {[%emt 0:00:25]} Ra5 {[%emt 0:00:04]} 57. Kb6 {[%emt 0:00:05]} Ra8 {[%emt 0:00:04]} 58. Kb5 {[%emt 0:00:36]} Ke6 {[%emt 0:00:05]} 59. Rxa4 {[%emt 0:00:12]} Rxa4 {[%emt 0:00:33]} 60. Kxa4 {[%emt 0:00:07]} Kf5 {[%emt 0:00:01]} 61. Kb5 {[%emt 0:00:19]} g5 {[%emt 0:00:03]} 62. fxg5 {[%emt 0:01:02]} Kxe5 {[%emt 0:00:06]} 63. g6 {[%emt 0:00:09]} Kf6 {[%emt 0:00:02]} 64. g7 {[%emt 0:00:06]} Kxg7 {[%emt 0:00:03]} 1/2-1/2